bitfinex/quotes_BTCUSD_20251104
["timestamp","ask_amount","ask_price","bid_price","bid_amount"]
[1762285535306,0.00410266,100850.0,100840.0,0.283558]
[1762285535896,0.00410266,100850.0,100840.0,1.21828072]
[1762285536104,0.35977351,100890.0,100840.0,1.21828072]
[1762285536105,0.16153781,100890.0,100860.0,0.19829414]
[1762285536255,0.02145689,100890.0,100880.0,0.02493]
[1762285536650,0.19821637,100900.0,100880.0,0.02493]
[1762285536868,0.5382357,100890.0,100880.0,0.02493]
[1762285537100,0.1982357,100890.0,100880.0,0.02493]
[1762285537335,0.1992357,100890.0,100880.0,0.02493]
[1762285537535,0.00048412,100890.0,100880.0,0.02493]
[1762285537775,0.53871982,100890.0,100880.0,0.02493]
[1762285537992,0.64167982,100890.0,100880.0,0.001]
[1762285538207,0.53826727,100880.0,100850.0,0.23315948]
[1762285538410,0.34,100880.0,100860.0,0.19829339]
[1762285538583,0.53892457,100880.0,100860.0,0.02493]
[1762285538808,0.34066865,100880.0,100870.0,0.02493]
[1762285539154,0.538924,100880.0,100860.0,0.02493]
[1762285539501,0.198275,100870.0,100860.0,0.02493]
[1762285539907,0.198275,100870.0,100840.0,0.05515]
[1762285539908,0.19829491,100860.0,100840.0,0.05515]
[1762285541104,0.63799875,100870.0,100840.0,0.05515]
[1762285541308,0.19929522,100860.0,100840.0,0.25548278]
[1762285541507,0.001,100860.0,100850.0,0.03794881]
[1762285541715,0.001,100860.0,100850.0,0.24551432]
[1762285542358,0.341,100860.0,100850.0,0.24551432]
[1762285542762,0.34,100860.0,100850.0,0.24551432]
[1762285542999,0.341,100860.0,100850.0,0.24751432]
[1762285543416,0.001,100860.0,100850.0,0.0256]
[1762285543817,0.001,100860.0,100850.0,0.0492]
[1762285544029,0.001,100860.0,100850.0,0.24751432]
[1762285544741,0.001,100860.0,100850.0,0.24801869]
[1762285546901,0.00066865,100880.0,100870.0,0.198275]
[1762285547125,0.00066865,100880.0,100870.0,0.221875]
[1762285547509,0.00066865,100880.0,100870.0,0.245475]
[1762285547932,0.00066865,100880.0,100870.0,0.0472]
[1762285548348,0.00066865,100880.0,100870.0,0.245475]
[1762285548593,0.00066865,100880.0,100850.0,0.22391026]
[1762285548781,0.22036537,100880.0,100850.0,0.22191026]
[1762285548992,0.19827503,100870.0,100850.0,0.0236]
[1762285549209,0.19827503,100870.0,100840.0,0.03022]
[1762285549210,0.21971891,100870.0,100840.0,0.03022]
[1762285549432,0.22963266,100870.0,100840.0,0.25215283]
[1762285549876,0.21971667,100870.0,100850.0,0.19831348]
[1762285550295,0.21971667,100870.0,100840.0,0.26206952]
[1762285550498,0.22071667,100870.0,100840.0,0.26206952]
[1762285550850,0.22071667,100870.0,100850.0,0.18831355]
[1762285551161,0.02244137,100870.0,100850.0,0.18831355]
[1762285551327,0.02244137,100870.0,100860.0,0.24549466]
[1762285551729,0.02144137,100870.0,100860.0,0.24549466]
[1762285552527,0.02144137,100870.0,100860.0,0.24574682]
[1762285552732,0.02144137,100870.0,100860.0,0.24774682]
[1762285554003,0.02144137,100870.0,100860.0,0.00225216]
[1762285554207,0.21971637,100870.0,100860.0,0.00225216]
[1762285554431,0.37515637,100870.0,100860.0,0.00225216]
[1762285554631,0.37515637,100870.0,100860.0,0.26095143]
[1762285554632,0.02144137,100870.0,100860.0,0.26095143]
[1762285554847,0.02144137,100870.0,100860.0,1.24234604]
[1762285555051,0.02144137,100870.0,100860.0,1.18246954]
[1762285555402,0.34048412,100890.0,100870.0,0.200435]
[1762285555403,0.00048412,100890.0,100870.0,0.200435]
[1762285555604,0.00048412,100890.0,100880.0,0.20041535]
[1762285555815,0.00048412,100890.0,100880.0,0.20257535]
[1762285556025,0.00073618,100890.0,100880.0,0.20257535]
[1762285556224,0.00073618,100890.0,100880.0,0.00216]
[1762285556453,0.00073618,100890.0,100870.0,0.0028287]
[1762285556454,0.24598188,100890.0,100870.0,0.0028287]
[1762285556654,0.04774618,100890.0,100870.0,0.20110292]
[1762285556858,0.00173618,100890.0,100880.0,0.00216]
[1762285557269,0.19997188,100890.0,100880.0,0.00216]
[1762285557513,0.19997188,100890.0,100870.0,0.0028287]
[1762285557514,0.58698188,100890.0,100870.0,0.0028287]
[1762285557709,0.34173618,100890.0,100880.0,0.00432]
[1762285558781,0.53997368,100890.0,100870.0,0.19894338]
[1762285558985,0.53997368,100890.0,100870.0,0.0028287]
[1762285559187,0.53997368,100890.0,100870.0,0.0070321]
[1762285559430,0.34173618,100890.0,100880.0,0.00216]
[1762285559792,0.53897188,100890.0,100880.0,0.00216]
[1762285559991,0.54097188,100890.0,100880.0,0.00216]
[1762285560190,0.64483188,100890.0,100870.0,0.0006687]
[1762285560463,0.19825535,100880.0,100870.0,0.0006687]
[1762285560589,0.53897341,100890.0,100880.0,0.00216]
[1762285560821,0.19825535,100880.0,100870.0,0.0006687]
[1762285561026,0.53825535,100880.0,100870.0,0.0006687]
[1762285561229,0.72987763,100880.0,100870.0,0.0006687]
[1762285561482,3.75387763,100880.0,100870.0,0.0006687]
[1762285562487,3.62843763,100880.0,100870.0,0.0006687]
[1762285562693,3.73387763,100880.0,100870.0,0.0006687]
[1762285562842,3.72987763,100880.0,100870.0,0.0006687]
[1762285563057,3.73532374,100880.0,100870.0,0.0016687]
[1762285563279,3.75932374,100880.0,100870.0,0.0016687]
[1762285563536,0.19829915,100860.0,100840.0,0.22855354]
[1762285563790,0.19831432,100850.0,100840.0,0.03022]
[1762285564001,0.24532432,100850.0,100840.0,0.03022]
[1762285564207,0.24532432,100850.0,100840.0,0.03238]
[1762285564208,0.34,100850.0,100840.0,0.03238]
[1762285564611,0.53831432,100850.0,100840.0,0.03238]
[1762285564851,0.53831432,100850.0,100840.0,0.03022]
[1762285565067,0.53831432,100850.0,100840.0,0.03036401]
[1762285565475,0.5744966,100850.0,100840.0,0.03036401]
[1762285565717,0.7299366,100850.0,100840.0,0.00214401]
[1762285565837,0.7799366,100850.0,100840.0,0.00214401]
[1762285566038,3.79413184,100850.0,100840.0,0.00214401]
[1762285566498,3.82392568,100850.0,100840.0,0.00014401]
[1762285567508,3.84536669,100850.0,100840.0,0.00014401]
[1762285567849,3.84536669,100850.0,100840.0,0.00114401]
[1762285567850,3.85036669,100850.0,100840.0,0.00114401]
[1762285568046,3.82436669,100850.0,100840.0,0.00114401]
[1762285568253,3.81936669,100850.0,100840.0,0.00014401]
[1762285568472,3.82636669,100850.0,100840.0,0.00114401]
[1762285571804,3.80236669,100850.0,100840.0,0.00114401]
[1762285572043,3.82257285,100850.0,100840.0,0.00114401]
[1762285572246,0.38263625,100850.0,100840.0,0.00190064]
[1762285572445,0.67794285,100850.0,100840.0,0.00190064]
[1762285572905,0.78853285,100850.0,100840.0,0.00190064]
[1762285573343,0.76453285,100850.0,100840.0,0.00190064]
[1762285573553,0.38263625,100850.0,100840.0,0.00190064]
[1762285573726,0.02844101,100850.0,100840.0,0.20122622]
[1762285573937,0.02144101,100850.0,100840.0,0.98454175]
[1762285574178,0.02144101,100850.0,100840.0,0.88996569]
[1762285574397,0.02544101,100850.0,100840.0,0.89096569]
[1762285574582,0.00710374,100850.0,100840.0,0.89096569]
[1762285574779,0.00310374,100850.0,100840.0,0.88996569]
[1762285574996,0.02141084,100850.0,100840.0,0.00190064]
[1762285575483,0.00310374,100850.0,100840.0,0.20023463]
[1762285575711,0.54141806,100850.0,100840.0,0.00190064]
[1762285575913,0.34310374,100850.0,100840.0,0.00090064]
[1762285576137,0.35392863,100870.0,100850.0,0.19830054]
[1762285576342,0.37534432,100870.0,100860.0,0.19829466]
[1762285576538,0.57361976,100870.0,100850.0,0.19830054]
[1762285576741,0.37534432,100870.0,100850.0,0.19830054]
[1762285576957,0.02141569,100870.0,100860.0,0.88902572]
[1762285577123,0.02141569,100870.0,100860.0,0.19829466]
[1762285578013,0.02541569,100870.0,100860.0,0.19829466]
[1762285578244,0.00066868,100880.0,100870.0,0.198275]
[1762285578466,0.00066868,100880.0,100870.0,0.88900606]
[1762285578687,0.00066868,100880.0,100870.0,0.198275]
[1762285579162,0.00066868,100880.0,100870.0,0.88900606]
[1762285579593,0.29611031,100920.0,100890.0,0.19822912]
[1762285579594,0.01352605,100910.0,100890.0,0.19822912]
[1762285579822,0.03183148,100910.0,100890.0,0.19822912]
[1762285580039,0.35830543,100910.0,100890.0,0.2081409]
[1762285580261,0.01830543,100910.0,100900.0,0.19821605]
[1762285580477,0.32865471,100930.0,100910.0,0.19819641]
[1762285580695,0.14879708,100930.0,100910.0,0.19819641]
[1762285580918,0.34,100920.0,100910.0,0.19819641]
[1762285581144,0.35829989,100920.0,100900.0,0.89885791]
[1762285581390,0.35829989,100920.0,100910.0,0.19819641]
[1762285581391,0.01829989,100920.0,100910.0,0.19819641]
[1762285581604,0.01443943,100930.0,100920.0,0.19817677]
[1762285581605,0.00088442,100930.0,100920.0,0.19817677]
[1762285581824,0.02517654,100930.0,100920.0,0.19817677]
[1762285582048,0.35917654,100930.0,100900.0,0.20812685]
[1762285582263,0.35917654,100930.0,100910.0,0.19819367]
[1762285582478,0.35917654,100930.0,100920.0,0.19817677]
[1762285582726,0.35917654,100930.0,100910.0,0.19819367]
[1762285583160,0.35917654,100930.0,100910.0,0.19819478]
[1762285583379,0.35917654,100930.0,100920.0,0.19817677]
[1762285583596,0.35917654,100930.0,100910.0,0.19819478]
[1762285584051,0.36217654,100930.0,100910.0,0.19819478]
[1762285584269,0.55733409,100930.0,100900.0,0.20812685]
[1762285584697,0.56033409,100930.0,100900.0,0.20812685]
[1762285584911,0.55733409,100930.0,100910.0,0.19819635]
[1762285585345,0.56033409,100930.0,100900.0,0.20812685]
[1762285585578,0.28476796,100920.0,100890.0,0.2081409]
[1762285585800,0.19821626,100900.0,100870.0,0.20818875]
[1762285586015,0.25870838,100900.0,100870.0,0.20818875]
[1762285586247,0.19823725,100890.0,100870.0,0.19827447]
[1762285586488,0.24041626,100900.0,100870.0,0.34777205]
[1762285586709,0.25867428,100900.0,100870.0,0.19827205]
[1762285586924,0.40045802,100900.0,100880.0,0.19825274]
[1762285587135,0.59867431,100900.0,100870.0,0.2081858]
[1762285587360,0.19823604,100890.0,100870.0,0.001]
[1762285587589,0.19825535,100880.0,100870.0,0.001]
[1762285587833,0.68565535,100880.0,100870.0,0.001]
[1762285588052,0.70391259,100880.0,100870.0,0.001]
[1762285588270,0.72791259,100880.0,100870.0,0.001]
[1762285588707,0.35825724,100880.0,100870.0,0.199275]
[1762285589190,0.01825724,100880.0,100870.0,0.199275]
[1762285589350,0.01825724,100880.0,100870.0,0.198275]
[1762285589558,0.01825724,100880.0,100870.0,0.88900606]
[1762285589977,0.00025205,100890.0,100880.0,0.19825535]
[1762285590385,0.00335397,100890.0,100880.0,0.88898641]
[1762285590593,0.00048412,100900.0,100880.0,0.88898641]
[1762285590594,0.00048412,100900.0,100890.0,0.1982357]
[1762285590994,3.0,100920.0,100900.0,0.19820811]
[1762285591194,0.02150838,100920.0,100910.0,0.19819641]
[1762285591419,0.02150838,100920.0,100900.0,0.19820811]
[1762285591612,0.21968539,100920.0,100900.0,0.19820811]
[1762285591912,0.21969465,100920.0,100900.0,0.19820811]
[1762285592142,0.21969465,100920.0,100890.0,0.20814748]
[1762285592281,0.21969465,100920.0,100900.0,0.19821602]
[1762285592688,0.21969465,100920.0,100890.0,0.20814748]
[1762285592863,0.19819948,100910.0,100870.0,0.29113673]
[1762285593068,0.19819948,100910.0,100900.0,0.001]
[1762285593069,0.30058268,100910.0,100900.0,0.001]
[1762285593264,0.33676496,100910.0,100900.0,0.001]
[1762285593490,0.41595496,100910.0,100900.0,0.001]
[1762285593707,0.35576961,100910.0,100900.0,0.001]
[1762285593912,0.27474961,100910.0,100890.0,0.19823502]
[1762285594144,0.27474961,100910.0,100900.0,0.0028315]
[1762285594145,0.0213632,100910.0,100900.0,0.0028315]
[1762285594311,0.0243632,100910.0,100900.0,0.001]
[1762285594508,0.22255961,100910.0,100900.0,0.001]
[1762285594713,0.35876961,100910.0,100900.0,0.001]
[1762285594906,0.38276961,100910.0,100900.0,0.001]
[1762285595492,3.41895189,100910.0,100900.0,0.001]
[1762285595690,0.19827048,100880.0,100850.0,0.20822761]
[1762285595816,3.0213632,100880.0,100860.0,0.19829299]
[1762285596015,0.3613632,100880.0,100860.0,0.19829299]
[1762285596329,0.3613632,100880.0,100870.0,0.198275]
[1762285596531,0.0213632,100880.0,100870.0,0.198275]
[1762285596743,0.00310156,100880.0,100870.0,0.28083338]
[1762285596922,0.34310221,100890.0,100880.0,0.19825535]
[1762285597126,0.36135461,100890.0,100880.0,0.19825535]
[1762285597324,0.36135461,100890.0,100870.0,0.2813175]
[1762285597652,0.36135461,100890.0,100880.0,0.19825535]
[1762285598582,0.02135461,100890.0,100880.0,0.19825535]
[1762285599796,0.02235461,100890.0,100880.0,0.19925535]
[1762285600316,0.02235461,100890.0,100880.0,0.001]
[1762285600520,0.26332031,100890.0,100880.0,0.001]
[1762285600725,0.02235461,100890.0,100880.0,0.001]
[1762285600926,0.22059031,100890.0,100880.0,0.001]
[1762285601279,0.27855031,100890.0,100880.0,0.001]
[1762285601484,0.27855031,100890.0,100880.0,0.1505]
[1762285602475,0.36438031,100890.0,100880.0,0.1505]
[1762285602756,0.36438031,100890.0,100880.0,0.001]
[1762285603697,0.02235461,100890.0,100880.0,0.001]
[1762285603912,0.2206602,100890.0,100880.0,0.001]
[1762285604143,0.0224245,100890.0,100880.0,0.19925535]
[1762285604884,0.0803845,100890.0,100880.0,0.001]
[1762285605084,0.0224245,100890.0,100880.0,0.19925535]
[1762285605714,0.0224245,100890.0,100880.0,0.001]
[1762285606132,0.2206602,100890.0,100880.0,0.001]
[1762285606355,0.0224245,100890.0,100880.0,0.001]
[1762285606577,0.0224245,100890.0,100880.0,0.19925535]
[1762285607408,0.0224245,100890.0,100880.0,0.34875535]
[1762285608922,0.0803845,100890.0,100880.0,0.1505]
[1762285609158,0.0803845,100890.0,100880.0,0.34875535]
[1762285609495,0.0803845,100890.0,100880.0,0.1505]
[1762285609746,0.5062145,100890.0,100880.0,0.1505]
[1762285609967,0.3624245,100890.0,100880.0,0.34875535]
[1762285610621,0.4203845,100890.0,100880.0,0.34875535]
[1762285611270,0.7044502,100890.0,100880.0,0.1505]
[1762285611951,3.7044502,100890.0,100880.0,0.001]
[1762285612120,3.74063248,100890.0,100880.0,0.00012253]
[1762285612320,3.79016024,100890.0,100880.0,0.00012253]
[1762285612545,3.75397796,100890.0,100880.0,0.00012253]
[1762285612700,0.7044502,100890.0,100880.0,0.00012253]
[1762285613097,0.1652145,100890.0,100870.0,0.19875902]
[1762285613346,0.34,100880.0,100870.0,0.30323887]
[1762285613505,0.3614245,100880.0,100870.0,0.19875902]
[1762285614375,0.55967985,100880.0,100870.0,0.00048412]
[1762285614577,0.3614245,100880.0,100870.0,0.00048412]
[1762285614768,0.55967985,100880.0,100870.0,0.00048412]
[1762285615044,0.3614245,100880.0,100870.0,0.00048412]
[1762285615190,0.3634245,100880.0,100870.0,0.19975912]
[1762285616186,0.0234245,100880.0,100870.0,0.19975912]
[1762285616546,0.0234245,100880.0,100870.0,0.20964376]
[1762285618075,0.00025201,100900.0,100870.0,0.99395088]
[1762285618277,0.00025201,100900.0,100880.0,0.01185864]
[1762285618482,0.00025201,100900.0,100880.0,0.19825464]
[1762285618739,0.34,100890.0,100880.0,0.19825535]
[1762285619374,0.34,100890.0,100880.0,0.20025535]
[1762285619701,0.00025201,100900.0,100890.0,0.1982357]
[1762285620700,0.00025201,100900.0,100890.0,1.14313317]
[1762285620899,0.04952776,100930.0,100920.0,0.19817677]
[1762285620900,0.11766445,100930.0,100920.0,0.19817677]
[1762285621119,0.08789719,100930.0,100910.0,0.20308105]
[1762285621319,0.08789719,100930.0,100910.0,0.00988464]
[1762285621320,0.32878606,100930.0,100910.0,0.00988464]
[1762285621542,0.10186731,100940.0,100920.0,0.19817677]
[1762285621717,0.30000607,100940.0,100920.0,0.19817677]
[1762285621940,0.34,100930.0,100910.0,0.21799087]
[1762285622121,0.66671735,100930.0,100910.0,0.00988464]
[1762285622322,0.66671735,100930.0,100890.0,0.21803212]
[1762285622323,0.19819779,100910.0,100890.0,0.21803212]
[1762285622573,0.19819779,100910.0,100890.0,0.00988464]
[1762285622709,0.34,100900.0,100890.0,0.00988464]
[1762285622913,0.34,100900.0,100890.0,0.20812034]
[1762285624056,0.34,100900.0,100890.0,0.00988464]
[1762285624459,0.53821605,100900.0,100890.0,0.00988464]
[1762285624691,0.53821605,100900.0,100890.0,0.20912034]
[1762285624692,0.34,100900.0,100890.0,0.20912034]
[1762285624893,0.34,100900.0,100890.0,0.20812034]
[1762285625094,0.001,100910.0,100900.0,0.19821605]
[1762285625300,0.22569158,100940.0,100920.0,0.19815923]
[1762285625530,0.0004,100940.0,100930.0,0.19815713]
[1762285625695,0.3404,100940.0,100930.0,0.19815713]
[1762285625895,0.0004,100940.0,100930.0,0.19815713]
[1762285627843,0.0004,100940.0,100930.0,0.19915713]
[1762285628047,0.0014,100940.0,100930.0,0.19915713]
[1762285628256,0.34140761,100940.0,100930.0,0.19815713]
[1762285628656,0.34240761,100940.0,100930.0,0.20115713]
[1762285628944,0.10133207,100960.0,100950.0,0.19811788]
[1762285628945,0.08789719,100960.0,100950.0,0.19811788]
[1762285629160,0.08789719,100960.0,100950.0,0.53811788]
[1762285629161,0.00014389,100960.0,100950.0,0.53811788]
[1762285629593,0.0006475,100960.0,100950.0,0.19811788]
[1762285630189,0.00374764,100960.0,100950.0,0.19811788]
[1762285630392,0.02205261,100960.0,100950.0,0.19811788]
[1762285630937,0.02205261,100960.0,100950.0,0.20111788]
[1762285631243,0.02305261,100960.0,100950.0,0.20111788]
[1762285631879,0.02205261,100960.0,100950.0,0.19811788]
[1762285632081,0.02305261,100960.0,100950.0,0.19911788]
[1762285632285,0.0016475,100960.0,100950.0,0.19911788]
[1762285632691,0.0016475,100960.0,100950.0,1.17583364]
[1762285633043,0.0016475,100960.0,100950.0,0.19911788]
[1762285633440,0.33114575,100960.0,100950.0,0.001]
[1762285634019,0.75352938,100960.0,100950.0,0.001]
[1762285634158,0.70400162,100960.0,100950.0,0.001]
[1762285634387,0.72800162,100960.0,100950.0,0.001]
[1762285634765,3.78244259,100960.0,100950.0,0.001]
[1762285636419,3.7641839,100960.0,100950.0,0.001]
[1762285636670,3.59085845,100960.0,100950.0,0.001]
[1762285636888,0.34,100950.0,100940.0,0.19813483]
[1762285637060,0.02990002,100960.0,100940.0,0.19813483]
[1762285637294,0.02990002,100960.0,100950.0,0.19911788]
[1762285637295,0.11807993,100960.0,100950.0,0.19911788]
[1762285637549,0.03690002,100960.0,100950.0,0.19911788]
[1762285637728,0.04050339,100960.0,100950.0,0.19911788]
[1762285637938,0.03740363,100960.0,100950.0,0.001]
[1762285638068,0.24150666,100960.0,100930.0,0.19815663]
[1762285638274,0.19811793,100950.0,100930.0,0.19815403]
[1762285638473,0.60500305,100960.0,100930.0,0.20806188]
[1762285638474,0.58090326,100960.0,100930.0,0.20806188]
[1762285638714,0.58400319,100960.0,100940.0,0.1981372]
[1762285639089,0.58400382,100960.0,100940.0,0.1981372]
[1762285639316,0.58400469,100960.0,100940.0,0.1981372]
[1762285639518,0.19812038,100950.0,100930.0,0.20806188]
[1762285640236,0.65898476,100960.0,100950.0,0.19811788]
[1762285640237,0.03290002,100960.0,100950.0,0.19811788]
[1762285640443,0.03290002,100960.0,100950.0,1.13313071]
[1762285640677,0.03290002,100960.0,100940.0,0.20802214]
[1762285640678,0.00114389,100960.0,100940.0,0.00988464]
[1762285640867,0.00314389,100960.0,100940.0,0.20901535]
[1762285641220,0.00314389,100960.0,100950.0,0.19811788]
[1762285641612,0.00014389,100960.0,100950.0,0.19811788]
[1762285642355,0.00114389,100960.0,100950.0,0.19811788]
[1762285643093,0.00014389,100960.0,100950.0,1.13313071]
[1762285643318,0.00014389,100960.0,100950.0,1.13513071]
[1762285643540,0.00114389,100960.0,100950.0,1.13513071]
[1762285643970,0.0016475,100960.0,100950.0,0.20011788]
[1762285644230,0.0004,100980.0,100970.0,0.19807863]
[1762285644466,0.00349898,100980.0,100970.0,1.1429761]
[1762285644923,0.0004,100980.0,100970.0,1.23755216]
[1762285645144,0.0004,100990.0,100980.0,0.19805902]
[1762285645365,0.0004,100990.0,100980.0,1.13307185]
[1762285645819,0.0004,100990.0,100980.0,0.19805902]
[1762285646039,0.00349861,100990.0,100980.0,0.19805902]
[1762285647126,0.00449861,100990.0,100980.0,0.20205902]
[1762285647340,0.02174476,100990.0,100980.0,0.19805902]
[1762285647549,0.02174476,100990.0,100980.0,0.20305902]
[1762285647732,0.02274476,100990.0,100980.0,0.20305902]
[1762285647996,0.02274476,100990.0,100980.0,0.19805902]
[1762285648260,0.0004,101010.0,101000.0,0.1980198]
[1762285648502,0.00054512,101010.0,101000.0,0.20790444]
[1762285650041,0.00154512,101010.0,101000.0,0.01188464]
[1762285650253,0.00154512,101010.0,101000.0,0.00988464]
[1762285650719,0.00254512,101010.0,101000.0,0.21190444]
[1762285650945,0.00054512,101010.0,101000.0,0.20790444]
[1762285651163,0.00154512,101010.0,101000.0,0.20990444]
[1762285651375,0.20297566,101020.0,101000.0,0.20990444]
[1762285651596,0.20345921,101020.0,101000.0,0.20990444]
[1762285652272,0.21075864,101020.0,101000.0,0.20990444]
[1762285652514,0.21075864,101020.0,101000.0,0.20790444]
[1762285653156,0.21075864,101020.0,101000.0,0.20790415]
[1762285653387,0.01277805,101020.0,101010.0,0.19800019]
[1762285653592,0.21075864,101020.0,101010.0,0.19800019]
[1762285653803,0.01277805,101020.0,101010.0,0.19800019]
[1762285654457,0.34048355,101020.0,101010.0,0.19800019]
[1762285654702,0.34048355,101020.0,101000.0,0.20790415]
[1762285654924,0.34048355,101020.0,101000.0,0.2078975]
[1762285655130,0.19798112,101020.0,101000.0,0.2078975]
[1762285655808,0.19898112,101020.0,101010.0,0.002]
[1762285656045,0.19798112,101020.0,101000.0,0.2078975]
[1762285656261,0.01262938,101020.0,101010.0,0.19800019]
[1762285656677,0.32985905,101030.0,101010.0,0.19800019]
[1762285657345,0.32985905,101030.0,101010.0,0.34750019]
[1762285657555,0.19798059,101020.0,101010.0,0.1495]
[1762285657766,0.32985905,101030.0,101010.0,0.1495]
[1762285657767,0.32985905,101030.0,101010.0,0.34750019]
[1762285657974,0.21053193,101020.0,101000.0,0.21779849]
[1762285658182,0.19798059,101020.0,101000.0,0.21779849]
[1762285658389,0.27948568,101030.0,101010.0,0.1979994]
[1762285658598,0.35959568,101030.0,101010.0,0.1979994]
[1762285658795,0.05323,101020.0,101010.0,0.1979994]
[1762285659007,0.13334,101020.0,101010.0,0.1979994]
[1762285659217,0.13359157,101020.0,101010.0,0.1979994]
[1762285660265,0.15495289,101020.0,101000.0,0.21779849]
[1762285660470,0.35293348,101020.0,101010.0,0.001]
[1762285660593,0.27282348,101020.0,101010.0,0.001]
[1762285660789,0.35377348,101020.0,101010.0,0.001]
[1762285661132,0.19800019,101010.0,101000.0,0.00988464]
[1762285661330,0.39408151,101010.0,101000.0,0.00988464]
[1762285661494,0.39408151,101010.0,101000.0,0.20790444]
[1762285661495,0.02136132,101010.0,101000.0,0.20790444]
[1762285661961,0.31313449,101010.0,101000.0,0.00988464]
[1762285662260,0.19803242,101000.0,100980.0,0.20911021]
[1762285662493,0.30034672,101000.0,100980.0,0.20959376]
[1762285662696,0.3727594,100990.0,100980.0,0.0016547]
[1762285662896,0.3941237,100990.0,100980.0,0.0016547]
[1762285663097,0.1960843,100990.0,100980.0,0.0016547]
[1762285663315,0.1151343,100990.0,100980.0,0.19971372]
[1762285663870,0.0213643,100990.0,100980.0,0.19971372]
[1762285664071,0.0617543,100990.0,100980.0,0.19971372]
[1762285664446,0.2597937,100990.0,100980.0,0.0016547]
[1762285664643,0.3941237,100990.0,100980.0,0.0016547]
[1762285665289,0.3131737,100990.0,100980.0,0.0016547]
[1762285665514,0.44365146,100990.0,100980.0,0.0016547]
[1762285665781,0.4191237,100990.0,100980.0,0.0016547]
[1762285666123,0.3951237,100990.0,100980.0,0.0016547]
[1762285666497,3.48083374,100990.0,100980.0,0.0016547]
[1762285666700,3.45530598,100990.0,100980.0,0.0016547]
[1762285666918,3.48505541,100990.0,100960.0,0.00990491]
[1762285667133,3.48505541,100990.0,100960.0,0.00014512]
[1762285667134,0.19807863,100970.0,100960.0,0.00014512]
[1762285667337,0.0617543,100970.0,100960.0,0.19824337]
[1762285667562,0.0213643,100970.0,100960.0,0.19824337]
[1762285668584,0.0617543,100970.0,100960.0,0.19824337]
[1762285668786,0.0627543,100970.0,100960.0,0.20224337]
[1762285669188,0.0223643,100970.0,100960.0,0.20224337]
[1762285669794,0.0213643,100970.0,100960.0,0.21792879]
[1762285669992,0.0223643,100970.0,100960.0,0.21992879]
[1762285670269,0.0213643,100970.0,100960.0,0.19824337]
[1762285671545,0.0223643,100970.0,100960.0,0.21012801]
[1762285671754,0.0213643,100970.0,100960.0,1.14314084]
[1762285672182,0.0223643,100970.0,100960.0,1.14714084]
[1762285672601,0.20923719,101010.0,100990.0,0.1980394]
[1762285672602,0.01244969,101000.0,100990.0,0.1980394]
[1762285672808,0.01244969,101000.0,100990.0,0.20792404]
[1762285672968,0.39338,101000.0,100990.0,0.20792404]
[1762285674000,0.6723498,101000.0,100990.0,0.20792404]
[1762285674156,0.5913998,101000.0,100990.0,0.20792404]
[1762285674361,0.5913998,101000.0,100990.0,0.00988464]
[1762285674570,0.6723498,101000.0,100990.0,0.00988464]
[1762285674761,0.6743498,101000.0,100990.0,0.01088464]
[1762285674954,0.47633,101000.0,100990.0,0.20892404]
[1762285675162,0.39538,101000.0,100990.0,0.20892404]
[1762285675471,0.35475009,101000.0,100990.0,0.20892404]
[1762285675670,0.01475009,101000.0,100990.0,0.20892404]
[1762285676241,0.002,101000.0,100990.0,0.20892404]
[1762285676452,0.002,101000.0,100990.0,1.24170292]
[1762285676872,0.002,101000.0,100990.0,1.14393687]
[1762285678243,0.00117098,101010.0,101000.0,0.1980198]
[1762285678727,0.00117098,101010.0,101000.0,1.13303263]
[1762285679601,0.00165423,101010.0,101000.0,1.13703263]
[1762285679798,0.00265423,101010.0,101000.0,1.13703263]
[1762285680485,0.00265423,101010.0,101000.0,0.89073456]
[1762285680702,0.00265423,101010.0,101000.0,1.04023456]
[1762285681374,0.3404,101030.0,101020.0,0.19798059]
[1762285681604,0.3404,101030.0,101020.0,0.20786523]
[1762285682942,0.3414,101030.0,101020.0,0.20786523]
[1762285683166,0.3414,101030.0,101020.0,0.30244129]
[1762285683397,0.0014,101030.0,101020.0,1.16386262]
[1762285683833,0.21172146,101060.0,101050.0,0.19792182]
[1762285684065,0.21172146,101060.0,101050.0,0.12108326]
[1762285684066,0.0880422,101060.0,101050.0,0.12108326]
[1762285684293,0.00014501,101060.0,101050.0,0.90754744]
[1762285684512,0.00014501,101060.0,101050.0,0.80979802]
[1762285684759,0.00014501,101060.0,101050.0,0.12108326]
[1762285684989,0.00324206,101060.0,101050.0,0.82461663]
[1762285685202,0.00324206,101060.0,101050.0,0.80979802]
[1762285685411,0.00324206,101060.0,101050.0,0.12108326]
[1762285685630,0.00324206,101060.0,101050.0,0.12308326]
[1762285685856,0.00324206,101060.0,101050.0,0.12108326]
[1762285686078,0.34324206,101060.0,101050.0,0.12108326]
[1762285686332,0.34324206,101060.0,101050.0,0.12308326]
[1762285686549,0.34324206,101060.0,101050.0,0.01188464]
[1762285686760,0.59452429,101060.0,101050.0,0.01188464]
[1762285686975,0.67547429,101060.0,101050.0,0.01188464]
[1762285687447,0.67547429,101060.0,101010.0,0.21776707]
[1762285687448,0.53795301,101040.0,101010.0,0.21776707]
[1762285687678,0.34309705,101040.0,101030.0,0.197961]
[1762285687893,0.34309705,101040.0,101010.0,0.21776707]
[1762285687894,0.54103845,101040.0,101010.0,0.21776707]
[1762285688113,0.34385161,101040.0,101030.0,0.197961]
[1762285688568,0.54179301,101040.0,101020.0,0.19798028]
[1762285688791,0.54103845,101040.0,101020.0,0.19798028]
[1762285689045,0.54203845,101040.0,101020.0,0.19798028]
[1762285689262,0.34309705,101040.0,101030.0,0.21169257]
[1762285689480,0.54103845,101040.0,101020.0,0.19798028]
[1762285689690,0.712681,101030.0,101010.0,0.20788459]
[1762285689933,0.34309705,101030.0,101020.0,0.19798059]
[1762285690631,0.00309705,101030.0,101020.0,0.19798059]
[1762285691081,0.00309705,101030.0,101020.0,0.19898059]
[1762285691298,0.20105805,101030.0,101020.0,0.19898059]
[1762285691891,0.20105805,101030.0,101020.0,0.001]
[1762285692315,0.20105805,101030.0,101010.0,0.20788459]
[1762285692538,0.19798059,101020.0,101010.0,0.00988464]
[1762285692756,0.54107764,101020.0,101010.0,0.00988464]
[1762285692966,0.34309705,101020.0,101010.0,0.20788483]
[1762285693174,0.54107764,101020.0,101010.0,0.00988464]
[1762285693605,0.54107764,101020.0,101000.0,0.20792079]
[1762285694042,0.23682019,101010.0,100990.0,0.20719592]
[1762285694252,0.37882,101010.0,101000.0,0.1980198]
[1762285694478,0.34,101010.0,101000.0,0.1980198]
[1762285695207,0.53800045,101010.0,100990.0,0.20767917]
[1762285695439,0.66227045,101010.0,100990.0,0.20840578]
[1762285696589,0.66227045,101010.0,100990.0,0.20840729]
[1762285696849,0.22797265,101020.0,100990.0,0.94876913]